[Event "Titled Tuesday Blitz November 14 Late 2023"]
[White "Fernandez Hernandez, Gerardo"]
[Black "Davidson, Kevin"]
[WhiteFideId "2207400"]
[BlackFideId "2056810"]
[WhiteElo "2116"]
[BlackElo "2372"]
[Result "0-1"]
[Round "3"]
[TimeControl "180+1"]
[Date "2023.11.14"]
[WhiteClock "0:00:07"]
[BlackClock "0:00:05"]
[Board "170"]

1. e4 {[%clk 0:03:00]}  c5 {[%clk 0:02:58]} 2. d3 {[%clk 0:03:01]}  g6 {[%clk 0:02:58]} 3. g3 {[%clk 0:03:01]}  Bg7 {[%clk 0:02:58]} 4. Bg2 {[%clk 0:03:02]}  Nc6 {[%clk 0:02:58]} 5. f4 {[%clk 0:03:02]}  d6 {[%clk 0:02:58]} 6. Nf3 {[%clk 0:03:03]}  Nf6 {[%clk 0:02:58]} 7. O-O {[%clk 0:03:03]}  O-O {[%clk 0:02:57]} 8. h3 {[%clk 0:03:02]}  Rb8 {[%clk 0:02:57]} 9. g4 {[%clk 0:03:01]}  b5 {[%clk 0:02:53]} 10. a4 {[%clk 0:02:50]}  b4 {[%clk 0:02:52]} 11. Nbd2 {[%clk 0:02:50]}  Ne8 {[%clk 0:02:43]} 12. Nc4 {[%clk 0:02:48]}  Nc7 {[%clk 0:02:40]} 13. Qe1 {[%clk 0:02:18]}  Ne6 {[%clk 0:02:33]} 14. Qf2 {[%clk 0:02:10]}  Ned4 {[%clk 0:02:30]} 15. Ne1 {[%clk 0:02:10]}  Be6 {[%clk 0:01:59]} 16. Kh1 {[%clk 0:01:51]}  Bxc4 {[%clk 0:01:48]} 17. dxc4 {[%clk 0:01:51]}  Na5 {[%clk 0:01:48]} 18. f5 {[%clk 0:01:11]}  Nxc4 {[%clk 0:01:44]} 19. g5 {[%clk 0:01:09]}  Be5 {[%clk 0:01:11]} 20. f6 {[%clk 0:00:56]}  exf6 {[%clk 0:00:55]} 21. gxf6 {[%clk 0:00:57]}  Kh8 {[%clk 0:00:53]} 22. Bh6 {[%clk 0:00:50]}  Rg8 {[%clk 0:00:51]} 23. Nd3 {[%clk 0:00:40]}  Ne6 {[%clk 0:00:37]} 24. b3 {[%clk 0:00:24]}  Bxa1 {[%clk 0:00:30]} 25. Rxa1 {[%clk 0:00:25]}  Ne5 {[%clk 0:00:30]} 26. Rf1 {[%clk 0:00:21]}  Nxd3 {[%clk 0:00:20]} 27. cxd3 {[%clk 0:00:22]}  g5 {[%clk 0:00:15]} 28. h4 {[%clk 0:00:13]}  gxh4 {[%clk 0:00:10]} 29. Bh3 {[%clk 0:00:10]}  Rg6 {[%clk 0:00:09]} 30. Qxh4 {[%clk 0:00:08]}  Qg8 {[%clk 0:00:04]} 31. Bxe6 {[%clk 0:00:06]}  fxe6 {[%clk 0:00:04]} 32. Bg7+ {[%clk 0:00:07]}  Rxg7 {[%clk 0:00:04]} 33. fxg7+ {[%clk 0:00:08]}  Qxg7 {[%clk 0:00:04]} 34. Rg1 {[%clk 0:00:05]}  Qe5 {[%clk 0:00:04]} 35. Rg5 {[%clk 0:00:04]}  Qa1+ {[%clk 0:00:03]} 36. Rg1 {[%clk 0:00:04]}  Qd4 {[%clk 0:00:02]} 37. Qg4 {[%clk 0:00:03]}  Qf6 {[%clk 0:00:01]} 38. Kh2 {[%clk 0:00:02]}  Rf8 {[%clk 0:00:01]} 39. Rg2 {[%clk 0:00:01]}  Qf4+ {[%clk 0:00:02]} 40. Qxf4 {[%clk 0:00:02]}  Rxf4 {[%clk 0:00:02]} 41. Kg3 {[%clk 0:00:02]}  Rf1 {[%clk 0:00:02]} 42. Rd2 {[%clk 0:00:01]}  Rb1 {[%clk 0:00:02]} 43. d4 {[%clk 0:00:01]}  Rxb3+ {[%clk 0:00:02]} 44. Kf4 {[%clk 0:00:01]}  c4 {[%clk 0:00:02]} 45. d5 {[%clk 0:00:02]}  e5+ {[%clk 0:00:02]} 46. Kf5 {[%clk 0:00:02]}  c3 {[%clk 0:00:02]} 47. Rc2 {[%clk 0:00:02]}  Rb2 {[%clk 0:00:03]} 48. Rc1 {[%clk 0:00:03]}  c2 {[%clk 0:00:02]} 49. Ke6 {[%clk 0:00:04]}  Rb1 {[%clk 0:00:03]} 50. Rxc2 {[%clk 0:00:04]}  b3 {[%clk 0:00:03]} 51. Rc8+ {[%clk 0:00:04]}  Kg7 {[%clk 0:00:03]} 52. Rc7+ {[%clk 0:00:04]}  Kg6 {[%clk 0:00:03]} 53. Rb7 {[%clk 0:00:05]}  b2 {[%clk 0:00:03]} 54. Kxd6 {[%clk 0:00:05]}  h5 {[%clk 0:00:03]} 55. Kxe5 {[%clk 0:00:06]}  h4 {[%clk 0:00:03]} 56. d6 {[%clk 0:00:06]}  h3 {[%clk 0:00:03]} 57. d7 {[%clk 0:00:06]}  Rd1 {[%clk 0:00:03]} 58. Rxb2 {[%clk 0:00:06]}  Rxd7 {[%clk 0:00:03]} 59. Rh2 {[%clk 0:00:07]}  Rh7 {[%clk 0:00:03]} 60. Kd6 {[%clk 0:00:07]}  Kg5 {[%clk 0:00:03]} 61. e5 {[%clk 0:00:07]}  Rh6+ {[%clk 0:00:02]} 62. e6 {[%clk 0:00:07]}  Kf5 {[%clk 0:00:02]} 63. Rf2+ {[%clk 0:00:06]}  Ke4 {[%clk 0:00:02]} 64. Kd7 {[%clk 0:00:06]}  Ke3 {[%clk 0:00:02]} 65. Rc2 {[%clk 0:00:06]}  h2 {[%clk 0:00:02]} 66. Rxh2 {[%clk 0:00:04]}  Rxh2 {[%clk 0:00:02]} 67. e7 {[%clk 0:00:05]}  Rh7 {[%clk 0:00:01]} 68. Kd8 {[%clk 0:00:06]}  Rh8+ {[%clk 0:00:02]} 69. e8=Q+ {[%clk 0:00:06]}  Rxe8+ {[%clk 0:00:02]} 70. Kxe8 {[%clk 0:00:07]}  Kd4 {[%clk 0:00:02]} 71. Kd7 {[%clk 0:00:07]}  Kc5 {[%clk 0:00:02]} 72. Kc7 {[%clk 0:00:08]}  a5 {[%clk 0:00:02]} 73. Kb7 {[%clk 0:00:08]}  Kb4 {[%clk 0:00:02]} 74. Kb6 {[%clk 0:00:08]}  Kxa4 {[%clk 0:00:03]} 75. Kc5 {[%clk 0:00:08]}  Kb3 {[%clk 0:00:03]} 76. Kd4 {[%clk 0:00:09]}  a4 {[%clk 0:00:04]} 77. Kd3 {[%clk 0:00:09]}  Kb2 {[%clk 0:00:04]} 78. Kd2 {[%clk 0:00:07]}  a3 {[%clk 0:00:05]} 0-1


[Site "https://www.chess.com"]

[Event "Titled Tuesday Blitz November 14 Late 2023"]
[White "miraitrunks"]
[Black "Gerbelli Neto, Eduardo"]
[BlackFideId "2103281"]
[WhiteElo "2074"]
[BlackElo "2354"]
[Result "0-1"]
[Round "3"]
[TimeControl "180+1"]
[Date "2023.11.14"]
[WhiteClock "0:00:00"]
[BlackClock "0:00:09"]
[Board "172"]

1. d4 {[%clk 0:02:56]}  d5 {[%clk 0:02:59]} 2. c4 {[%clk 0:02:54]}  c6 {[%clk 0:02:59]} 3. Nc3 {[%clk 0:02:53]}  Nf6 {[%clk 0:02:59]} 4. Nf3 {[%clk 0:02:53]}  e6 {[%clk 0:02:59]} 5. cxd5 {[%clk 0:02:53]}  exd5 {[%clk 0:02:58]} 6. Bg5 {[%clk 0:02:53]}  Bb4 {[%clk 0:02:58]} 7. e3 {[%clk 0:02:53]}  Nbd7 {[%clk 0:02:56]} 8. Bd3 {[%clk 0:02:54]}  Qa5 {[%clk 0:02:56]} 9. Qc2 {[%clk 0:02:49]}  h6 {[%clk 0:02:52]} 10. Bxf6 {[%clk 0:02:46]}  Nxf6 {[%clk 0:02:52]} 11. O-O {[%clk 0:02:47]}  O-O {[%clk 0:02:52]} 12. Ne5 {[%clk 0:02:46]}  c5 {[%clk 0:02:36]} 13. dxc5 {[%clk 0:02:40]}  Qxc5 {[%clk 0:02:35]} 14. Rac1 {[%clk 0:02:30]}  Qe7 {[%clk 0:02:22]} 15. Nf3 {[%clk 0:02:25]}  Bg4 {[%clk 0:02:18]} 16. Nd4 {[%clk 0:02:25]}  Rac8 {[%clk 0:02:18]} 17. Qb3 {[%clk 0:02:23]}  Rfd8 {[%clk 0:01:45]} 18. h3 {[%clk 0:02:16]}  Be6 {[%clk 0:01:41]} 19. a3 {[%clk 0:02:14]}  Bd6 {[%clk 0:01:37]} 20. Ncb5 {[%clk 0:02:12]}  Bb8 {[%clk 0:01:37]} 21. Rxc8 {[%clk 0:02:09]}  Rxc8 {[%clk 0:01:36]} 22. Nxe6 {[%clk 0:01:59]}  fxe6 {[%clk 0:01:31]} 23. Qd1 {[%clk 0:01:48]}  a6 {[%clk 0:01:21]} 24. Nd4 {[%clk 0:01:47]}  Qd6 {[%clk 0:01:08]} 25. g3 {[%clk 0:01:47]}  e5 {[%clk 0:00:56]} 26. Nf5 {[%clk 0:01:45]}  Qe6 {[%clk 0:00:53]} 27. Kg2 {[%clk 0:01:29]}  e4 {[%clk 0:00:54]} 28. Nd4 {[%clk 0:01:29]}  Qd6 {[%clk 0:00:47]} 29. Bc2 {[%clk 0:01:28]}  Nd7 {[%clk 0:00:41]} 30. Qg4 {[%clk 0:01:25]}  Rf8 {[%clk 0:00:29]} 31. Bb3 {[%clk 0:01:23]}  Ne5 {[%clk 0:00:25]} 32. Qh5 {[%clk 0:01:19]}  Nc4 {[%clk 0:00:23]} 33. Nf5 {[%clk 0:01:10]}  Qf6 {[%clk 0:00:20]} 34. Nxh6+ {[%clk 0:01:03]}  gxh6 {[%clk 0:00:17]} 35. Qxd5+ {[%clk 0:01:02]}  Kg7 {[%clk 0:00:16]} 36. Bxc4 {[%clk 0:00:54]}  Qf3+ {[%clk 0:00:16]} 37. Kh2 {[%clk 0:00:45]}  b5 {[%clk 0:00:16]} 38. Qd7+ {[%clk 0:00:18]}  Kh8 {[%clk 0:00:16]} 39. Qd4+ {[%clk 0:00:14]}  Rf6 {[%clk 0:00:15]} 40. Qd8+ {[%clk 0:00:13]}  Rf8 {[%clk 0:00:15]} 41. Qd4+ {[%clk 0:00:13]}  Kh7 {[%clk 0:00:15]} 42. Qd7+ {[%clk 0:00:12]}  Kg6 {[%clk 0:00:13]} 43. Bb3 {[%clk 0:00:05]}  Bxg3+ {[%clk 0:00:12]} 44. fxg3 {[%clk 0:00:05]}  Qxf1 {[%clk 0:00:12]} 45. Qg4+ {[%clk 0:00:05]}  Kh7 {[%clk 0:00:11]} 46. Qd7+ {[%clk 0:00:05]}  Kh8 {[%clk 0:00:10]} 47. Qd4+ {[%clk 0:00:05]}  Qf6 {[%clk 0:00:11]} 48. Qxf6+ {[%clk 0:00:03]}  Rxf6 {[%clk 0:00:10]} 49. g4 {[%clk 0:00:04]}  Rf2+ {[%clk 0:00:11]} 50. Kg3 {[%clk 0:00:04]}  Rxb2 {[%clk 0:00:11]} 51. Bd5 {[%clk 0:00:04]}  a5 {[%clk 0:00:08]} 52. Kf4 {[%clk 0:00:04]}  b4 {[%clk 0:00:08]} 53. axb4 {[%clk 0:00:04]}  axb4 {[%clk 0:00:09]} 54. Kxe4 {[%clk 0:00:04]}  Kg7 {[%clk 0:00:09]} 55. Kd4 {[%clk 0:00:04]}  Re2 {[%clk 0:00:09]} 56. e4 {[%clk 0:00:00]}  Kf6 {[%clk 0:00:09]} 0-1


[Site "https://www.chess.com"]

[Event "Titled Tuesday Blitz November 14 Late 2023"]
[White "Elbebiber"]
[Black "Weak-Player_EGY"]
[WhiteElo "2058"]
[BlackElo "2345"]
[Result "0-1"]
[Round "3"]
[TimeControl "180+1"]
[Date "2023.11.14"]
[WhiteClock "0:00:10"]
[BlackClock "0:00:37"]
[Board "174"]

1. d4 {[%clk 0:03:00]}  Nf6 {[%clk 0:03:00]} 2. Bg5 {[%clk 0:03:00]}  g6 {[%clk 0:03:00]} 3. Bxf6 {[%clk 0:02:59]}  exf6 {[%clk 0:03:00]} 4. e3 {[%clk 0:02:57]}  d5 {[%clk 0:02:59]} 5. g3 {[%clk 0:02:52]}  h5 {[%clk 0:02:57]} 6. h4 {[%clk 0:02:49]}  Bh6 {[%clk 0:02:57]} 7. Bg2 {[%clk 0:02:43]}  c6 {[%clk 0:02:56]} 8. Ne2 {[%clk 0:02:39]}  Nd7 {[%clk 0:02:55]} 9. Nd2 {[%clk 0:02:28]}  f5 {[%clk 0:02:56]} 10. c4 {[%clk 0:02:26]}  Nf6 {[%clk 0:02:55]} 11. Nc3 {[%clk 0:02:24]}  Be6 {[%clk 0:02:55]} 12. cxd5 {[%clk 0:02:19]}  Nxd5 {[%clk 0:02:55]} 13. Rc1 {[%clk 0:02:07]}  Qd6 {[%clk 0:02:26]} 14. Nxd5 {[%clk 0:01:54]}  Bxd5 {[%clk 0:02:25]} 15. Bxd5 {[%clk 0:01:42]}  Qxd5 {[%clk 0:02:23]} 16. O-O {[%clk 0:01:39]}  Qd6 {[%clk 0:02:14]} 17. Nc4 {[%clk 0:01:34]}  Qc7 {[%clk 0:02:06]} 18. Ne5 {[%clk 0:01:28]}  Kf8 {[%clk 0:02:00]} 19. Qb3 {[%clk 0:01:23]}  Kg7 {[%clk 0:01:59]} 20. Rfd1 {[%clk 0:01:16]}  f6 {[%clk 0:01:58]} 21. Nf3 {[%clk 0:01:14]}  Rae8 {[%clk 0:01:57]} 22. d5 {[%clk 0:01:12]}  Re4 {[%clk 0:01:32]} 23. Kg2 {[%clk 0:00:56]}  Rhe8 {[%clk 0:01:28]} 24. Rd3 {[%clk 0:00:46]}  Rg4 {[%clk 0:01:16]} 25. dxc6 {[%clk 0:00:33]}  bxc6 {[%clk 0:01:08]} 26. Qc3 {[%clk 0:00:28]}  f4 {[%clk 0:00:54]} 27. exf4 {[%clk 0:00:21]}  Bxf4 {[%clk 0:00:52]} 28. Rcd1 {[%clk 0:00:22]}  Re7 {[%clk 0:00:48]} 29. Nd4 {[%clk 0:00:16]}  Be5 {[%clk 0:00:45]} 30. Qc4 {[%clk 0:00:14]}  c5 {[%clk 0:00:42]} 31. Ne6+ {[%clk 0:00:13]}  Rxe6 {[%clk 0:00:42]} 32. Qxe6 {[%clk 0:00:14]}  Qb7+ {[%clk 0:00:40]} 33. Kh2 {[%clk 0:00:12]}  Qxb2 {[%clk 0:00:40]} 34. Rd7+ {[%clk 0:00:12]}  Kh6 {[%clk 0:00:40]} 35. R1d2 {[%clk 0:00:11]}  Qa3 {[%clk 0:00:38]} 36. Qf7 {[%clk 0:00:10]}  Bxg3+ {[%clk 0:00:37]} 37. Kh1 {[%clk 0:00:10]}  Qf3+ {[%clk 0:00:37]} 38. Kg1 {[%clk 0:00:10]}  Bxf2+ {[%clk 0:00:37]} 39. Kf1 {[%clk 0:00:10]}  Rg1# {[%clk 0:00:37]} 0-1


[Site "https://www.chess.com"]

[Event "Titled Tuesday Blitz November 14 Late 2023"]
[White "Eggleston, Thomas A"]
[Black "Gyulamiryan-koryun"]
[WhiteFideId "412139"]
[WhiteElo "2343"]
[BlackElo "1874"]
[Result "1-0"]
[Round "3"]
[TimeControl "180+1"]
[Date "2023.11.14"]
[WhiteClock "0:00:21"]
[BlackClock "0:00:00"]
[Board "176"]

1. e4 {[%clk 0:03:00]}  e5 {[%clk 0:02:58]} 2. Nf3 {[%clk 0:02:59]}  Nc6 {[%clk 0:02:58]} 3. d4 {[%clk 0:02:56]}  exd4 {[%clk 0:02:57]} 4. Nxd4 {[%clk 0:02:57]}  Bc5 {[%clk 0:02:56]} 5. Nxc6 {[%clk 0:02:56]}  Qf6 {[%clk 0:02:56]} 6. Qd2 {[%clk 0:02:56]}  dxc6 {[%clk 0:02:54]} 7. Bd3 {[%clk 0:02:56]}  Bd7 {[%clk 0:02:53]} 8. Nc3 {[%clk 0:02:57]}  O-O-O {[%clk 0:02:52]} 9. Na4 {[%clk 0:02:51]}  Bd4 {[%clk 0:02:51]} 10. O-O {[%clk 0:02:46]}  Nh6 {[%clk 0:02:34]} 11. c3 {[%clk 0:02:37]}  Bb6 {[%clk 0:02:28]} 12. Nxb6+ {[%clk 0:02:36]}  cxb6 {[%clk 0:02:28]} 13. Qe2 {[%clk 0:02:33]}  Ng4 {[%clk 0:02:23]} 14. f3 {[%clk 0:02:14]}  Ne5 {[%clk 0:02:20]} 15. Bc2 {[%clk 0:02:13]}  Be6 {[%clk 0:02:15]} 16. b3 {[%clk 0:02:11]}  Nd7 {[%clk 0:02:10]} 17. Qe1 {[%clk 0:01:38]}  g5 {[%clk 0:02:05]} 18. a4 {[%clk 0:01:37]}  h6 {[%clk 0:01:46]} 19. a5 {[%clk 0:01:37]}  b5 {[%clk 0:01:46]} 20. a6 {[%clk 0:01:36]}  b6 {[%clk 0:01:46]} 21. f4 {[%clk 0:01:28]}  g4 {[%clk 0:01:16]} 22. f5 {[%clk 0:01:21]}  Rdg8 {[%clk 0:00:53]} 23. fxe6 {[%clk 0:01:07]}  Qxe6 {[%clk 0:00:54]} 24. Bf4 {[%clk 0:00:59]}  Nc5 {[%clk 0:00:49]} 25. Bg3 {[%clk 0:00:48]}  h5 {[%clk 0:00:45]} 26. b4 {[%clk 0:00:38]}  Nd7 {[%clk 0:00:39]} 27. e5 {[%clk 0:00:35]}  h4 {[%clk 0:00:30]} 28. Bf5 {[%clk 0:00:34]}  Qd5 {[%clk 0:00:25]} 29. Bxd7+ {[%clk 0:00:30]}  Qxd7 {[%clk 0:00:24]} 30. Bf4 {[%clk 0:00:29]}  g3 {[%clk 0:00:20]} 31. h3 {[%clk 0:00:28]}  Re8 {[%clk 0:00:11]} 32. Rd1 {[%clk 0:00:28]}  Qe7 {[%clk 0:00:05]} 33. Qe2 {[%clk 0:00:25]}  f5 {[%clk 0:00:00]} 34. Qc2 {[%clk 0:00:21]} 1-0


[Site "https://www.chess.com"]

[Event "Titled Tuesday Blitz November 14 Late 2023"]
[White "Becerra, Juan David"]
[Black "Vargas, Mauricio"]
[WhiteFideId "4404998"]
[BlackFideId "4404572"]
[WhiteElo "2340"]
[BlackElo "1851"]
[Result "1-0"]
[Round "3"]
[TimeControl "180+1"]
[Date "2023.11.14"]
[WhiteClock "0:00:40"]
[BlackClock "0:00:00"]
[Board "177"]

1. d4 {[%clk 0:03:00]}  d5 {[%clk 0:02:58]} 2. Nc3 {[%clk 0:03:01]}  c6 {[%clk 0:02:56]} 3. Nf3 {[%clk 0:02:59]}  Bf5 {[%clk 0:02:52]} 4. Bf4 {[%clk 0:02:59]}  e6 {[%clk 0:02:52]} 5. e3 {[%clk 0:03:00]}  Nd7 {[%clk 0:02:49]} 6. Bd3 {[%clk 0:03:01]}  Be7 {[%clk 0:02:45]} 7. O-O {[%clk 0:02:59]}  Ngf6 {[%clk 0:02:42]} 8. Re1 {[%clk 0:02:59]}  O-O {[%clk 0:02:41]} 9. e4 {[%clk 0:02:57]}  dxe4 {[%clk 0:02:38]} 10. Nxe4 {[%clk 0:02:58]}  Nd5 {[%clk 0:02:34]} 11. Bg3 {[%clk 0:02:52]}  Nb4 {[%clk 0:02:30]} 12. Bc4 {[%clk 0:02:26]}  a5 {[%clk 0:02:29]} 13. c3 {[%clk 0:02:21]}  Nd5 {[%clk 0:02:27]} 14. Nd6 {[%clk 0:02:21]}  b5 {[%clk 0:02:14]} 15. Bxd5 {[%clk 0:02:07]}  cxd5 {[%clk 0:02:02]} 16. Nxf5 {[%clk 0:02:07]}  exf5 {[%clk 0:01:58]} 17. Qd3 {[%clk 0:02:08]}  g6 {[%clk 0:01:55]} 18. Qxb5 {[%clk 0:02:06]}  Nf6 {[%clk 0:01:48]} 19. Qb7 {[%clk 0:02:02]}  Bd6 {[%clk 0:01:42]} 20. Bh4 {[%clk 0:01:55]}  h6 {[%clk 0:01:37]} 21. Bxf6 {[%clk 0:01:49]}  Qxf6 {[%clk 0:01:36]} 22. Qxd5 {[%clk 0:01:50]}  Rfd8 {[%clk 0:01:29]} 23. Ne5 {[%clk 0:01:46]}  a4 {[%clk 0:01:21]} 24. Qf3 {[%clk 0:01:41]}  Rab8 {[%clk 0:01:17]} 25. Rab1 {[%clk 0:01:37]}  Rb5 {[%clk 0:00:47]} 26. b3 {[%clk 0:01:30]}  axb3 {[%clk 0:00:46]} 27. axb3 {[%clk 0:01:30]}  Bxe5 {[%clk 0:00:42]} 28. dxe5 {[%clk 0:01:24]}  Rxe5 {[%clk 0:00:39]} 29. Rxe5 {[%clk 0:01:22]}  Qxe5 {[%clk 0:00:39]} 30. Qe3 {[%clk 0:01:23]}  Qxe3 {[%clk 0:00:34]} 31. fxe3 {[%clk 0:01:24]}  Rd3 {[%clk 0:00:27]} 32. c4 {[%clk 0:01:22]}  Rxe3 {[%clk 0:00:26]} 33. b4 {[%clk 0:01:22]}  Rc3 {[%clk 0:00:23]} 34. c5 {[%clk 0:01:20]}  Kf8 {[%clk 0:00:23]} 35. Rd1 {[%clk 0:01:11]}  Rb3 {[%clk 0:00:21]} 36. Rd4 {[%clk 0:01:07]}  Ke7 {[%clk 0:00:20]} 37. c6 {[%clk 0:01:06]}  Rc3 {[%clk 0:00:17]} 38. b5 {[%clk 0:01:05]}  Rc5 {[%clk 0:00:17]} 39. Rd7+ {[%clk 0:01:01]}  Ke6 {[%clk 0:00:16]} 40. Rb7 {[%clk 0:01:00]}  Kd6 {[%clk 0:00:16]} 41. Kf2 {[%clk 0:01:00]}  g5 {[%clk 0:00:14]} 42. Rd7+ {[%clk 0:00:59]}  Ke5 {[%clk 0:00:12]} 43. c7 {[%clk 0:00:55]}  Ke6 {[%clk 0:00:05]} 44. Rd3 {[%clk 0:00:39]}  Rxc7 {[%clk 0:00:04]} 45. b6 {[%clk 0:00:38]}  Rb7 {[%clk 0:00:04]} 46. Rb3 {[%clk 0:00:39]}  Kd6 {[%clk 0:00:02]} 47. Ke3 {[%clk 0:00:39]}  Kc6 {[%clk 0:00:02]} 48. Kd4 {[%clk 0:00:38]}  Rxb6 {[%clk 0:00:02]} 49. Rxb6+ {[%clk 0:00:37]}  Kxb6 {[%clk 0:00:02]} 50. Ke5 {[%clk 0:00:38]}  Kc6 {[%clk 0:00:03]} 51. Kxf5 {[%clk 0:00:38]}  Kd6 {[%clk 0:00:03]} 52. Kf6 {[%clk 0:00:38]}  Kd7 {[%clk 0:00:01]} 53. Kxf7 {[%clk 0:00:38]}  Kd6 {[%clk 0:00:02]} 54. Kf6 {[%clk 0:00:39]}  Kd5 {[%clk 0:00:00]} 55. Kf5 {[%clk 0:00:40]} 1-0


[Site "https://www.chess.com"]

[Event "Titled Tuesday Blitz November 14 Late 2023"]
[White "Harish, Neeraj"]
[Black "Burke, Paul"]
[WhiteFideId "30958130"]
[BlackFideId "2605767"]
[WhiteElo "2333"]
[BlackElo "1849"]
[Result "1-0"]
[Round "3"]
[TimeControl "180+1"]
[Date "2023.11.14"]
[WhiteClock "0:00:03"]
[BlackClock "0:00:04"]
[Board "178"]

1. e4 {[%clk 0:02:56]}  e5 {[%clk 0:02:59]} 2. Nf3 {[%clk 0:02:54]}  Nc6 {[%clk 0:02:59]} 3. Bc4 {[%clk 0:02:53]}  Be7 {[%clk 0:02:59]} 4. d4 {[%clk 0:02:33]}  exd4 {[%clk 0:02:59]} 5. Nxd4 {[%clk 0:02:34]}  d6 {[%clk 0:02:59]} 6. Nc3 {[%clk 0:02:30]}  Nf6 {[%clk 0:02:59]} 7. Bf4 {[%clk 0:02:22]}  O-O {[%clk 0:02:58]} 8. Qd2 {[%clk 0:02:16]}  Nxd4 {[%clk 0:02:51]} 9. Qxd4 {[%clk 0:02:15]}  Be6 {[%clk 0:02:51]} 10. O-O-O {[%clk 0:02:10]}  Bxc4 {[%clk 0:02:50]} 11. Qxc4 {[%clk 0:02:09]}  Nd7 {[%clk 0:02:42]} 12. Qe2 {[%clk 0:01:58]}  Bg5 {[%clk 0:02:36]} 13. Qd2 {[%clk 0:01:57]}  Bxf4 {[%clk 0:02:36]} 14. Qxf4 {[%clk 0:01:58]}  Qf6 {[%clk 0:02:35]} 15. Qd2 {[%clk 0:01:47]}  Nb6 {[%clk 0:02:32]} 16. g4 {[%clk 0:01:40]}  Rad8 {[%clk 0:02:21]} 17. g5 {[%clk 0:01:39]}  Qe6 {[%clk 0:02:18]} 18. h4 {[%clk 0:01:24]}  Rfe8 {[%clk 0:02:16]} 19. h5 {[%clk 0:01:19]}  c6 {[%clk 0:01:54]} 20. f4 {[%clk 0:01:06]}  Nc4 {[%clk 0:01:44]} 21. Qh2 {[%clk 0:00:58]}  b5 {[%clk 0:01:38]} 22. g6 {[%clk 0:00:50]}  fxg6 {[%clk 0:01:33]} 23. hxg6 {[%clk 0:00:49]}  h6 {[%clk 0:01:33]} 24. f5 {[%clk 0:00:16]}  Qe5 {[%clk 0:01:33]} 25. Qe2 {[%clk 0:00:14]}  Rf8 {[%clk 0:01:10]} 26. Rh2 {[%clk 0:00:10]}  Nb6 {[%clk 0:00:55]} 27. Rdh1 {[%clk 0:00:08]}  b4 {[%clk 0:00:53]} 28. Nd1 {[%clk 0:00:06]}  d5 {[%clk 0:00:51]} 29. Qe3 {[%clk 0:00:04]}  Qxe4 {[%clk 0:00:47]} 30. Qd2 {[%clk 0:00:04]}  Nc4 {[%clk 0:00:42]} 31. Rxh6 {[%clk 0:00:03]}  gxh6 {[%clk 0:00:04]} 32. Qxh6 {[%clk 0:00:03]} 1-0


[Site "https://www.chess.com"]

[Event "Titled Tuesday Blitz November 14 Late 2023"]
[White "DAVIDHDZSTS"]
[Black "Chabris, Christopher"]
[BlackFideId "2005263"]
[WhiteElo "1848"]
[BlackElo "2329"]
[Result "1-0"]
[Round "3"]
[TimeControl "180+1"]
[Date "2023.11.14"]
[WhiteClock "0:00:05"]
[BlackClock "0:00:00"]
[Board "179"]

1. d4 {[%clk 0:03:00]}  d5 {[%clk 0:02:58]} 2. c4 {[%clk 0:02:59]}  c6 {[%clk 0:02:58]} 3. Nc3 {[%clk 0:02:58]}  Nf6 {[%clk 0:02:59]} 4. cxd5 {[%clk 0:02:57]}  cxd5 {[%clk 0:02:59]} 5. Bf4 {[%clk 0:02:54]}  Nc6 {[%clk 0:02:57]} 6. e3 {[%clk 0:02:53]}  a6 {[%clk 0:02:57]} 7. a3 {[%clk 0:02:51]}  Bf5 {[%clk 0:02:52]} 8. Bd3 {[%clk 0:02:49]}  Bxd3 {[%clk 0:02:51]} 9. Qxd3 {[%clk 0:02:50]}  e6 {[%clk 0:02:50]} 10. Rc1 {[%clk 0:02:44]}  Nh5 {[%clk 0:02:48]} 11. Bg3 {[%clk 0:02:38]}  Nxg3 {[%clk 0:02:47]} 12. hxg3 {[%clk 0:02:39]}  h6 {[%clk 0:02:46]} 13. Nge2 {[%clk 0:02:38]}  Bd6 {[%clk 0:02:44]} 14. f4 {[%clk 0:01:51]}  Rc8 {[%clk 0:02:18]} 15. O-O {[%clk 0:01:39]}  f5 {[%clk 0:02:13]} 16. b4 {[%clk 0:01:26]}  b5 {[%clk 0:01:58]} 17. Kf2 {[%clk 0:01:10]}  O-O {[%clk 0:01:41]} 18. Ng1 {[%clk 0:01:06]}  Ne7 {[%clk 0:01:27]} 19. Nf3 {[%clk 0:01:02]}  Rc4 {[%clk 0:01:27]} 20. Ne2 {[%clk 0:00:48]}  Qb6 {[%clk 0:01:16]} 21. Ne5 {[%clk 0:00:33]}  Bxe5 {[%clk 0:01:15]} 22. fxe5 {[%clk 0:00:32]}  g5 {[%clk 0:01:10]} 23. Rc3 {[%clk 0:00:20]}  Kg7 {[%clk 0:01:00]} 24. Rfc1 {[%clk 0:00:20]}  Ng6 {[%clk 0:00:57]} 25. Kg1 {[%clk 0:00:12]}  h5 {[%clk 0:00:53]} 26. R1c2 {[%clk 0:00:10]}  Rh8 {[%clk 0:00:47]} 27. Rxc4 {[%clk 0:00:10]}  dxc4 {[%clk 0:00:47]} 28. Qd1 {[%clk 0:00:10]}  h4 {[%clk 0:00:36]} 29. Kf2 {[%clk 0:00:10]}  hxg3+ {[%clk 0:00:33]} 30. Nxg3 {[%clk 0:00:11]}  f4 {[%clk 0:00:21]} 31. Ne4 {[%clk 0:00:10]}  Nxe5 {[%clk 0:00:16]} 32. exf4 {[%clk 0:00:09]}  gxf4 {[%clk 0:00:13]} 33. Nc5 {[%clk 0:00:09]}  Ng4+ {[%clk 0:00:11]} 34. Qxg4+ {[%clk 0:00:10]}  Kf7 {[%clk 0:00:10]} 35. Re2 {[%clk 0:00:11]}  Rh6 {[%clk 0:00:09]} 36. Re5 {[%clk 0:00:09]}  Rf6 {[%clk 0:00:08]} 37. Nd7 {[%clk 0:00:08]}  Qxd4+ {[%clk 0:00:07]} 38. Kf1 {[%clk 0:00:08]}  Qxd7 {[%clk 0:00:06]} 39. Qh5+ {[%clk 0:00:08]}  Ke7 {[%clk 0:00:06]} 40. Qh7+ {[%clk 0:00:07]}  Rf7 {[%clk 0:00:06]} 41. Qh4+ {[%clk 0:00:07]}  Kd6 {[%clk 0:00:05]} 42. Re1 {[%clk 0:00:06]}  Qc6 {[%clk 0:00:03]} 43. Qf2 {[%clk 0:00:05]}  Ke7 {[%clk 0:00:00]} 44. Re5 {[%clk 0:00:05]} 1-0


[Site "https://www.chess.com"]